fUSD/lending_fUSD_20240927
["ID","MTS","AMOUNT","RATE_DAILY","PERIOD"]
[339266502,1727422240706,-161.08495259,0.000129,2]
[339266504,1727422240716,-161.08495259,0.000129,2]
[339266506,1727422240725,-161.08495259,0.000129,2]
[339266508,1727422240734,-161.08495259,0.000129,2]
[339266510,1727422240744,-161.08495259,0.000129,2]
[339266512,1727422240753,-161.08495259,0.000129,2]
[339266513,1727422240763,-161.08495259,0.000129,2]
[339266516,1727422240774,-161.08495259,0.000129,2]
[339266518,1727422240784,-161.08495259,0.000129,2]
[339266520,1727422240795,-161.58,0.000129,2]
[339266522,1727422240805,-175.419183,0.000129,2]
[339266524,1727422240814,-157.43767215,0.000129,2]
[339266525,1727422240824,-157.43767215,0.000129,2]
[339266528,1727422240834,-157.43767215,0.000129,2]
[339266530,1727422240844,-157.43767215,0.000129,2]
[339266531,1727422240854,-157.43767215,0.000129,2]
[339266533,1727422240863,-157.43767215,0.000129,2]
[339266535,1727422240873,-157.43767215,0.000129,2]
[339266538,1727422240883,-157.43767215,0.000129,2]
[339266539,1727422240893,-157.43767215,0.000129,2]
[339266541,1727422240903,-157.43767215,0.000129,2]
[339266543,1727422240912,-157.43767215,0.000129,2]
[339266545,1727422240921,-157.43767215,0.000129,2]
[339266547,1727422240931,-157.43767215,0.000129,2]
[339266549,1727422240941,-157.43767215,0.000129,2]
[339266551,1727422240950,-157.43767215,0.000129,2]
[339266553,1727422240960,-157.43767215,0.000129,2]
[339266555,1727422240969,-157.43767215,0.000129,2]
[339266557,1727422240978,-157.43767215,0.000129,2]
[339266559,1727422240987,-157.93,0.000129,2]
[339266561,1727422240997,-598.33815418,0.000129,2]
[339266563,1727422241006,-598.33815418,0.000129,2]
[339266565,1727422241015,-598.33815418,0.000129,2]
[339266567,1727422241025,-598.33815418,0.000129,2]
[339266569,1727422241035,-598.33815418,0.000129,2]
[339266570,1727422241044,-598.33815418,0.000129,2]
[339266572,1727422241053,-598.33815418,0.000129,2]
[339266574,1727422241063,-598.33815418,0.000129,2]
[339266576,1727422241073,-598.33815418,0.000129,2]
[339266578,1727422241083,-667.859644,0.000129,2]
[339266580,1727422241093,-598.33815418,0.000129,2]
[339266582,1727422241103,-667.859644,0.000129,2]
[339266584,1727422241113,-598.33815418,0.000129,2]
[339266586,1727422241122,-598.33815418,0.000129,2]
[339266588,1727422241132,-598.33815418,0.000129,2]
[339266590,1727422241142,-598.33815418,0.000129,2]
[339266592,1727422241153,-598.33815418,0.000129,2]
[339266594,1727422241163,-598.33815418,0.000129,2]
[339266596,1727422241172,-598.33815418,0.000129,2]
[339266598,1727422241181,-598.33815418,0.000129,2]
[339266600,1727422241191,-598.33815418,0.000129,2]
[339266602,1727422241199,-598.83,0.000129,2]
[339266603,1727422241208,-667.859644,0.000129,2]
[339266605,1727422241218,-667.859644,0.000129,2]
[339266607,1727422241227,-1191.803115,0.000129,2]
[339266609,1727422241237,-184.11426943,0.000129,2]
[339266611,1727422241247,-1191.803115,0.000129,2]
[339266613,1727422241256,-184.11426943,0.000129,2]
[339266615,1727422241266,-184.11426943,0.000129,2]
[339266617,1727422241275,-184.11426943,0.000129,2]
[339266619,1727422241285,-184.11426943,0.000129,2]
[339266621,1727422241295,-184.11426943,0.000129,2]
[339266623,1727422241304,-184.11426943,0.000129,2]
[339266625,1727422241314,-184.11426943,0.000129,2]
[339266627,1727422241323,-184.11426943,0.000129,2]
[339266629,1727422241333,-184.11426943,0.000129,2]
[339266631,1727422241342,-184.11426943,0.000129,2]
[339266633,1727422241352,-184.11426943,0.000129,2]
[339266635,1727422241362,-184.11426943,0.000129,2]
[339266637,1727422241371,-1191.803115,0.000129,2]
[339266639,1727422241381,-184.11426943,0.000129,2]
[339266641,1727422241390,-1191.803115,0.000129,2]
[339266643,1727422241400,-184.11426943,0.000129,2]
[339266645,1727422241409,-184.11426943,0.000129,2]
[339266647,1727422241419,-184.11426943,0.000129,2]
[339266648,1727422241428,-184.11426943,0.000129,2]
[339266650,1727422241438,-184.11426943,0.000129,2]
[339266652,1727422241448,-151.0,0.000129,2]
[339266654,1727422241457,-184.61,0.000129,2]
[339266656,1727422241467,-151.0,0.000129,2]
[339266658,1727422241476,-736.53207771,0.000129,2]
[339266660,1727422241486,-151.0,0.000129,2]
[339266662,1727422241495,-736.53207771,0.000129,2]
[339266664,1727422241505,-736.53207771,0.000129,2]
[339266667,1727422241514,-736.53207771,0.000129,2]
[339266668,1727422241524,-736.53207771,0.000129,2]
[339266670,1727422241533,-151.0,0.000129,2]
[339266672,1727422241543,-736.53207771,0.000129,2]
[339266674,1727422241553,-736.53207771,0.000129,2]
[339266676,1727422241562,-151.0,0.000129,2]
[339266678,1727422241571,-736.53207771,0.000129,2]
[339266680,1727422241580,-736.53207771,0.000129,2]
[339266682,1727422241589,-736.53207771,0.000129,2]
[339266684,1727422241599,-736.53207771,0.000129,2]
[339266686,1727422241608,-736.53207771,0.000129,2]
[339266688,1727422241618,-151.0,0.000129,2]
[339266690,1727422241627,-736.53207771,0.000129,2]
[339266692,1727422241637,-151.0,0.000129,2]
[339266694,1727422241646,-736.53207771,0.000129,2]
[339266696,1727422241655,-151.0,0.000129,2]
[339266698,1727422241665,-736.53207771,0.000129,2]
[339266700,1727422241675,-736.53207771,0.000129,2]
[339266702,1727422241685,-736.53207771,0.000129,2]
[339266704,1727422241694,-736.53207771,0.000129,2]
[339266706,1727422241704,-736.53207771,0.000129,2]
[339266708,1727422241714,-737.03,0.000129,2]
[339266710,1727422241724,-491.2,0.000129,2]
[339266712,1727422241734,-151.0,0.000129,2]
[339266714,1727422241743,-151.0,0.000129,2]
[339266715,1727422241753,-500.0,0.000129,2]
[339266717,1727422241762,-151.0,0.000129,2]
[339266719,1727422241772,-4163.44683193,0.000129,2]
[339266721,1727422241782,-151.0,0.000129,2]
[339266723,1727422241791,-151.0,0.000129,2]
[339266725,1727422241801,-500.0,0.000129,2]
[339266727,1727422241811,-150.0,0.000129,2]
[339266729,1727422241821,-151.0,0.000129,2]
[339266731,1727422241831,-151.0,0.000129,2]
[339266733,1727422241840,-151.0,0.000129,2]
[339266735,1727422241850,-151.0,0.000129,2]
[339266737,1727422241859,-151.0,0.000129,2]
[339266739,1727422241868,-151.0,0.000129,2]
[339266741,1727422241878,-297.222908,0.000129,2]
[339266743,1727422241888,-300.0,0.000129,2]
[339266745,1727422241898,-300.0,0.000129,2]
[339266747,1727422241908,-300.0,0.000129,2]
[339266749,1727422241918,-300.0,0.000129,2]
[339266751,1727422241928,-300.0,0.000129,2]
[339266753,1727422241938,-300.0,0.000129,2]
[339266755,1727422241948,-300.0,0.000129,2]
[339266757,1727422241958,-300.0,0.000129,2]
[339266759,1727422241968,-300.0,0.000129,2]
[339266761,1727422241977,-300.0,0.000129,2]
[339266763,1727422241987,-300.0,0.000129,2]
[339266765,1727422241997,-300.0,0.000129,2]
[339266767,1727422242007,-300.0,0.000129,2]
[339266770,1727422242017,-300.0,0.000129,2]
[339266772,1727422242026,-300.0,0.000129,2]
[339266773,1727422242036,-300.0,0.000129,2]
[339266775,1727422242047,-300.0,0.000129,2]
[339266777,1727422242056,-300.0,0.000129,2]
[339266779,1727422242066,-300.0,0.000129,2]
[339266781,1727422242076,-300.0,0.000129,2]
[339266783,1727422242086,-52755.5466813,0.00012905,2]
[339266785,1727422242096,-300.0,0.00012914,2]
[339266788,1727422242107,-300.0,0.00012914,2]
[339266790,1727422242116,-300.0,0.00012914,2]
[339266791,1727422242126,-300.0,0.00012914,2]
[339266793,1727422242135,-300.0,0.00012914,2]
[339266795,1727422242146,-300.0,0.00012914,2]
[339266798,1727422242159,-300.0,0.00012914,2]
[339266800,1727422242169,-300.0,0.00012914,2]
[339266802,1727422242178,-300.0,0.00012914,2]
[339266804,1727422242188,-300.0,0.00012916,2]
[339266806,1727422242198,-300.0,0.00012916,2]
[339266807,1727422242207,-300.0,0.00012916,2]
[339266810,1727422242217,-300.0,0.00012916,2]
[339266812,1727422242226,-300.0,0.00012916,2]
[339266814,1727422242235,-300.0,0.00012916,2]
[339266816,1727422242245,-300.0,0.00012916,2]
[339266818,1727422242255,-300.0,0.00012916,2]
[339266820,1727422242265,-300.0,0.00012916,2]
[339266822,1727422242274,-500.0,0.00012927,2]
[339266824,1727422242284,-650.0,0.00012927,2]
[339266826,1727422242294,-200.02309415,0.00012927,2]
[339266828,1727422242303,-420.0,0.0001293,2]
[339266830,1727422242313,-1500.0,0.00012951,2]
[339266832,1727422242323,-1500.0,0.00012964,2]
[339266834,1727422242333,-172.89,0.00012976,2]
[339266836,1727422242342,-1000.0,0.00012978,2]
[339266837,1727422242352,-150.0,0.00012979,2]
[339266839,1727422242361,-300.0,0.0001299,2]
[339266842,1727422242371,-151.0,0.00012991,2]
[339266844,1727422242380,-151.0,0.00012991,2]
[339266846,1727422242390,-151.0,0.00012991,2]
[339266848,1727422242400,-151.0,0.00012991,2]
[339266850,1727422242409,-151.0,0.00012991,2]
[339266852,1727422242419,-151.0,0.00012991,2]
[339266854,1727422242428,-151.0,0.00012991,2]
[339266856,1727422242437,-151.0,0.00012991,2]
[339266858,1727422242447,-151.0,0.00012991,2]
[339266859,1727422242456,-151.0,0.00012991,2]
[339266862,1727422242466,-151.0,0.00012991,2]
[339266865,1727422242476,-151.0,0.00012991,2]
[339266867,1727422242485,-219.854782,0.00012991,2]
[339266869,1727422242495,-219.854782,0.00012991,2]
[339266871,1727422242504,-151.0,0.00012991,2]
[339266872,1727422242514,-151.0,0.00012991,2]
[339266875,1727422242524,-151.0,0.00012991,2]
[339266877,1727422242533,-151.0,0.00012991,2]
[339266878,1727422242543,-176.113264,0.00012991,2]
[339266880,1727422242551,-176.113264,0.00012991,2]
[339266882,1727422242562,-821.911528,0.00012991,2]
[339266884,1727422242571,-821.911528,0.00012991,2]
[339266886,1727422242581,-151.0,0.00012991,2]
[339266889,1727422242592,-151.0,0.00012991,2]
[339266891,1727422242602,-151.0,0.00012991,2]
[339266893,1727422242612,-151.0,0.00012991,2]
[339266895,1727422242621,-330.127929,0.00012991,2]
[339266897,1727422242630,-330.127929,0.00012991,2]
[339266899,1727422242639,-151.0,0.00012991,2]
[339266901,1727422242649,-151.0,0.00012991,2]
[339266903,1727422242659,-860.967758,0.00012991,2]
[339266905,1727422242669,-151.0,0.00012991,2]
[339266906,1727422242679,-860.967758,0.00012991,2]
[339266908,1727422242688,-151.719939,0.00012991,2]
[339266910,1727422242698,-151.0,0.00012991,2]
[339266912,1727422242707,-151.0,0.00012991,2]
[339266914,1727422242717,-313.846725,0.00012991,2]
[339266916,1727422242726,-313.846725,0.00012991,2]
[339266918,1727422242736,-478.41124,0.00012991,2]
[339266920,1727422242745,-478.41124,0.00012991,2]
[339266922,1727422242755,-151.0,0.00012991,2]
[339266924,1727422242765,-151.0,0.00012991,2]
[339266926,1727422242775,-151.0,0.00012991,2]
[339266928,1727422242785,-151.0,0.00012991,2]
[339266930,1727422242795,-151.0,0.00012991,2]
[339266933,1727422242805,-151.0,0.00012991,2]
[339266936,1727422242815,-165.990249,0.00012991,2]
[339266938,1727422242824,-151.0,0.00012991,2]
[339266940,1727422242834,-165.990249,0.00012991,2]
[339266942,1727422242844,-151.0,0.00012991,2]
[339266945,1727422242858,-151.0,0.00012991,2]
[339266947,1727422242868,-151.0,0.00012991,2]
[339266949,1727422242877,-151.0,0.00012991,2]
[339266951,1727422242888,-464.291522,0.00012991,2]
[339266953,1727422242897,-151.0,0.00012991,2]
[339266955,1727422242907,-464.291522,0.00012991,2]
[339266957,1727422242916,-522.083864,0.00012991,2]
[339266959,1727422242926,-851.166956,0.00012991,2]
[339266960,1727422242936,-522.083864,0.00012991,2]
[339266962,1727422242945,-151.0,0.00012991,2]
[339266964,1727422242955,-151.0,0.00012991,2]
[339266966,1727422242965,-213.500561,0.00012991,2]
[339266968,1727422242974,-970.623364,0.00012991,2]
[339266970,1727422242984,-970.623364,0.00012991,2]
[339266972,1727422242994,-151.0,0.00012991,2]
[339266974,1727422243004,-151.0,0.00012991,2]
[339266976,1727422243013,-151.0,0.00012991,2]
[339266978,1727422243023,-151.0,0.00012991,2]
[339266980,1727422243033,-337.671011,0.00012991,2]
[339266982,1727422243044,-337.671011,0.00012991,2]
[339266984,1727422243053,-173.437898,0.00012991,2]
[339266986,1727422243063,-173.437898,0.00012991,2]
[339266989,1727422243073,-151.0,0.00012991,2]
[339266991,1727422243084,-151.0,0.00012991,2]
[339266993,1727422243094,-151.0,0.00012991,2]
[339266995,1727422243105,-151.0,0.00012991,2]
[339266997,1727422243115,-151.0,0.00012991,2]
[339266999,1727422243124,-155.109402,0.00012991,2]
[339267001,1727422243134,-58190.3233213,0.00012991,2]
[339267003,1727422243144,-63625.0999614,0.00012991,2]
[339267005,1727422243158,-69059.8766014,0.00012991,2]
[339267007,1727422243168,-299.222311,0.00012991,2]
[339267009,1727422243177,-74494.6532414,0.00012991,2]
[339267011,1727422243187,-79929.4298814,0.00012991,2]
[339267013,1727422243198,-795.246045,0.00012991,2]
[339267015,1727422243208,-795.246045,0.00012991,2]
[339267017,1727422243218,-151.881982,0.00012991,2]
[339267019,1727422243229,-1312.056814,0.00012991,2]
[339267021,1727422243239,-151.0,0.00012991,2]
[339267023,1727422243248,-1312.056814,0.00012991,2]
[339267026,1727422243259,-1017.525508,0.00012991,2]
[339267028,1727422243269,-1017.525508,0.00012991,2]
[339267030,1727422243280,-151.0,0.00012991,2]
[339267032,1727422243289,-154.157829,0.00012991,2]
[339267034,1727422243308,-151.0,0.00012991,2]
[339267036,1727422243318,-270.901679,0.00012991,2]
[339267038,1727422243328,-270.901679,0.00012991,2]
[339267040,1727422243337,-151.0,0.00012991,2]
[339267042,1727422243347,-151.0,0.00012991,2]
[339267044,1727422243357,-151.0,0.00012991,2]
[339267046,1727422243367,-151.0,0.00012991,2]
[339267049,1727422243376,-4776.835905,0.00012991,2]
[339267052,1727422243386,-4776.835905,0.00012991,2]
[339267055,1727422243396,-184.89742,0.00012991,2]
[339267058,1727422243405,-184.89742,0.00012991,2]
[339267061,1727422243415,-2828.4671004,0.00012991,2]
[339267064,1727422243424,-3082.0998373,0.00012991,2]
[339267067,1727422243434,-3335.7325742,0.00012991,2]
[339267069,1727422243443,-3589.3653112,0.00012991,2]
[339267071,1727422243453,-3842.9980481,0.00012991,2]
[339267073,1727422243462,-667.859644,0.00012991,2]
[339267075,1727422243473,-667.859644,0.00012991,2]
[339267077,1727422243482,-1191.803115,0.00012991,2]
[339267079,1727422243492,-1191.803115,0.00012991,2]
[339267081,1727422243502,-151.0,0.00012991,2]
[339267083,1727422243511,-3270.1227799,0.00012991,2]
[339267085,1727422243521,-3563.3594206,0.00012991,2]
[339267086,1727422243531,-151.0,0.00012991,2]
[339267087,1727422243540,-3856.5960612,0.00012991,2]
[339267088,1727422243553,-4149.8327018,0.00012991,2]
[339267089,1727422243565,-4443.0693425,0.00012991,2]
[339267090,1727422243574,-174.455682,0.00012991,2]
[339267091,1727422243584,-151.0,0.00012991,2]
[339267092,1727422243594,-151.0,0.00012991,2]
[339267093,1727422243604,-151.0,0.00012991,2]
[339267104,1727422243769,-151.0,0.00012991,2]
[339267106,1727422243780,-9106.5919952,0.00012991,2]
[339267108,1727422243790,-9945.7716618,0.00012991,2]
[339267110,1727422243800,-10784.9513285,0.00012991,2]
[339267112,1727422243810,-11624.1309951,0.00012991,2]
[339267114,1727422243820,-12463.3106618,0.00012991,2]
[339267116,1727422243830,-6518.22859687,0.00012995,2]
[339267118,1727422243839,-16705.7824511,0.00012998,2]
[339267120,1727422243849,-617.37419894,0.00012999,3]
[339267122,1727422243858,-1000.0,0.00012999,2]
[339267124,1727422243868,-2274.57590804,0.00012999,2]
[339267126,1727422243878,-500.0,0.00013,3]
[339267128,1727422243888,-1211587.73690697,0.00013,2]
[339267149,1727422244072,-764640.13984783,0.00013,2]
[339267151,1727422244084,-664.7658,0.00013,2]
[339267153,1727422244095,-10231.82958382,0.00013,2]
[339267155,1727422244108,-2939.34453431,0.00013,2]
[339267157,1727422244119,-21980.50124176,0.00013,2]
[339267159,1727422244130,-20046.88647575,0.00013,2]
[339267162,1727422244142,-1079.19611686,0.00013,2]
[339267164,1727422244157,-25680.41096095,0.00013,2]
[339267166,1727422244168,-21293.89753412,0.00013,2]
[339267168,1727422244179,-2894.2789726,0.00013,2]
[339267171,1727422244202,-1595.41732748,0.00013,2]
[339267174,1727422244214,-1332.6099,0.00013,2]
[339267176,1727422244226,-328.265,0.00013,2]
[339267178,1727422244237,-764.69339767,0.00013,2]
[339267181,1727422244253,-201.195,0.000129,2]
[339267183,1727422244262,-240707.91745905,0.00013,2]
[339267185,1727422244274,-828.75769103,0.00013,2]
[339267187,1727422244285,-1942.37721319,0.00013,2]
[339267189,1727422244297,-366477.76935272,0.00013,2]
[339267191,1727422244308,-656.14,0.00013,2]
[339267193,1727422244319,-539.06283141,0.00013,2]
[339267195,1727422244330,-40552.55275291,0.00013,2]
[339267197,1727422244341,-24672.06794877,0.00013,2]
[339267205,1727422244407,-246.357375,0.000129,2]
[339267207,1727422244416,-246.357375,0.000129,2]
[339267209,1727422244426,-246.357375,0.000129,2]
[339267211,1727422244435,-327.8396453,0.000129,2]
[339267213,1727422244444,-246.357375,0.00012991,2]
[339267215,1727422244454,-15597.30653885,0.00013,2]
[339267217,1727422244465,-361.45361106,0.00013,2]
[339267219,1727422244477,-10034.08847094,0.00013,2]
[339267221,1727422244489,-1164.90682513,0.00013,2]
[339267224,1727422244502,-1146.82366185,0.00013,2]
[339267226,1727422244514,-523.92304689,0.00013,2]
[339267227,1727422244525,-1509.09021663,0.00013,2]
[339267228,1727422244537,-938.47877362,0.00013,2]
[339267229,1727422244550,-567.63859501,0.00013,2]
[339267230,1727422244562,-1149.07228572,0.00013,2]
[339267231,1727422244573,-1283.09584029,0.00013,2]
[339267232,1727422244584,-4791.17830158,0.00013,2]
[339267233,1727422244596,-1464.06406546,0.00013,2]
[339267234,1727422244607,-1732.275,0.00013,2]
[339267235,1727422244618,-2557.84870107,0.00013,2]
[339267236,1727422244629,-821.406033,0.00013,2]
[339267237,1727422244641,-1241.55230948,0.00013,2]
[339267239,1727422244653,-503.19150413,0.00013,2]
[339267241,1727422244665,-1128.06641355,0.00013,2]
[339267243,1727422244677,-912.45,0.00013,2]
[339267246,1727422244689,-486.18500001,0.00013,2]
[339267248,1727422244700,-2927.37522779,0.00013,2]
[339267250,1727422244711,-1558.32946893,0.00013,2]
[339267252,1727422244722,-273.88727203,0.00013,2]
[339267254,1727422244734,-6938.82902288,0.00013,2]
[339267257,1727422244745,-382.12258582,0.00013,2]
[339267259,1727422244758,-46018.50019631,0.00013,2]
[339267261,1727422244771,-71783.70110887,0.00013,2]
[339267264,1727422244782,-841.5247125,0.00013,2]
[339267266,1727422244795,-367.69336575,0.00013,2]
[339267268,1727422244808,-10467.06883877,0.00013,2]
[339267270,1727422244819,-833.87987711,0.00013,2]
[339267273,1727422244831,-3313.60911296,0.00013,2]
[339267275,1727422244842,-918.3487726,0.00013,2]
[339267277,1727422244852,-369.12270208,0.00013,2]
[339267279,1727422244863,-16896.2586345,0.00013,2]
[339267281,1727422244875,-281584.61951558,0.00013,2]
[339267380,1727422245793,-151.0,0.000129,2]
[339267382,1727422245803,-151.0,0.000129,2]
[339267384,1727422245813,-59.43277495,0.000129,2]
[339267386,1727422245825,-186.92460005,0.000129,2]
[339267388,1727422245834,-130.36311894,0.000129,2]
[339267390,1727422245846,-20.63688106,0.000129,2]
[339267392,1727422245856,-38380.80537407,0.00013,2]
[339267394,1727422245867,-418.84953567,0.00013,2]
[339267396,1727422245879,-14282.35319939,0.00013,2]
[339267399,1727422245891,-2886.749998,0.00013,2]
[339267401,1727422245902,-117744.73324818,0.00013,2]
[339267403,1727422245913,-14625.0251972,0.00013,2]
[339267405,1727422245925,-631.37538617,0.00013,2]
[339267407,1727422245937,-808.97139607,0.00013,2]
[339267410,1727422245953,-2654.94895016,0.00013,2]
[339267412,1727422245965,-283.51720375,0.00013,2]
[339267414,1727422245976,-1001.94879446,0.00013,2]
[339267417,1727422245990,-11018.39962144,0.00013,2]
[339267419,1727422246003,-19161.0,0.00013,2]
[339267422,1727422246020,-450.0,0.00013,2]
[339267424,1727422246032,-898.99522388,0.00013,2]
[339267427,1727422246045,-682.65715097,0.00013,2]
[339267429,1727422246056,-1562.72546183,0.00013,2]
[339267431,1727422246068,-51777.34103376,0.00013,2]
[339267434,1727422246081,-3407.63288819,0.00013,2]
[339267436,1727422246094,-387.7317709,0.00013,2]
[339267438,1727422246106,-1673.54415866,0.00013,2]
[339267440,1727422246117,-900.09,0.00013,2]
[339267443,1727422246128,-1222.58142477,0.00013,2]
[339267446,1727422246149,-356.88365472,0.00012752,2]
[339267448,1727422246163,-467.5696332,0.00012752,2]
[339267450,1727422246175,-926.37451208,0.00012752,2]
[339267452,1727422246184,-151.0,0.00012991,2]
[339267454,1727422246194,-417.44585877,0.00013,2]
[339267456,1727422246206,-6402.78,0.00013,2]
[339267459,1727422246217,-3965.04391255,0.00013,2]
[339267461,1727422246229,-321.8,0.00013,2]
[339267463,1727422246240,-5966.55757461,0.00013,2]
[339267465,1727422246253,-1346.35809449,0.00013,2]
[339267468,1727422246264,-8027.63642451,0.00013,2]
[339267470,1727422246275,-1788.63600368,0.00013,2]
[339267472,1727422246286,-3076.63408916,0.00013,2]
[339267474,1727422246298,-1099.81572783,0.00013,2]
[339267476,1727422246309,-2009.13156047,0.00013,2]
[339267478,1727422246320,-576.07380006,0.00013,2]
[339267481,1727422246331,-606.16402942,0.00013,2]
[339267483,1727422246341,-3671.2053238,0.00013,2]
[339267485,1727422246356,-277.38,0.00013,2]
[339267915,1727422271363,200.62,0.00010376,2]
[339267916,1727422330937,1253.48,0.000149,31]
[339267917,1727422330995,1253.48,0.000149,31]
[339267918,1727422331108,1253.48,0.000149,31]
[339267919,1727422331165,1253.48,0.000149,31]
[339267920,1727422331232,1253.48,0.000149,31]
[339267921,1727422331300,1253.48,0.000149,31]
[339267922,1727422331348,1253.48,0.000149,31]
[339267923,1727422331396,1253.48,0.000149,31]
[339267924,1727422331471,1253.48,0.000149,31]
[339267925,1727422331508,1253.48,0.000149,31]
[339267926,1727422331571,1253.48,0.000149,31]
[339267927,1727422331636,1253.48,0.000149,31]
[339267928,1727422331676,1253.48,0.000149,31]
[339267929,1727422331734,1253.48,0.000149,31]
[339267930,1727422331780,1253.48,0.000149,31]
[339267931,1727422331841,1253.48,0.000149,31]
[339267932,1727422414224,150.0,0.0001037,2]
[339267933,1727422834677,190.58,9.818e-05,2]
[339267934,1727422943035,1053.02,0.000149,31]
[339267935,1727422943147,1053.02,0.000149,31]
[339267936,1727422943214,1053.02,0.000149,31]
[339267937,1727422943254,1053.02,0.000149,31]
[339267938,1727422943296,1053.02,0.000149,31]
[339267939,1727422943353,1053.02,0.000149,31]
[339267940,1727422943395,1053.02,0.000149,31]
[339267941,1727422943484,1053.02,0.000149,31]
[339267942,1727422943539,1053.02,0.000149,31]
[339267943,1727422943594,1053.02,0.000149,31]
[339267944,1727422943659,1053.02,0.000149,31]
[339267945,1727422943732,1053.02,0.000149,31]
[339267946,1727422943786,1053.02,0.000149,31]
[339267947,1727422943844,1053.02,0.000149,31]
[339267948,1727422943914,1053.02,0.000149,31]
[339267949,1727422945225,1053.02,0.000149,31]
[339267950,1727423050942,977.38721561,6.781e-05,7]
[339267951,1727423051274,373893.58955273,6.781e-05,7]
[339267952,1727423051298,80875.12237327,6.781e-05,7]
[339267953,1727423054512,11512.0,0.000104,5]
[339267954,1727423054765,11512.0,0.000102,3]
[339267955,1727423055008,230254.0,0.0001,2]
[339267956,1727423058634,739.79,0.00010959,2]
[339267957,1727423069271,616.49,0.00010959,2]
[339267958,1727423079791,513.74,0.00010959,2]
[339267959,1727423090311,428.12,0.00010959,2]
[339267960,1727423092503,1600.0,8.22e-05,2]
[339267961,1727423092995,1100.0,8.972e-05,2]
[339267962,1727423094110,1600.0,9.59e-05,2]
[339267963,1727423094589,1100.0,0.00010342,2]
[339267964,1727423095682,1600.0,0.0001096,2]
[339267965,1727423100820,500.0,8.972e-05,2]
[339267966,1727423101095,356.76,0.00010959,2]
[339267967,1727423102164,500.0,8.972e-05,2]
[339267968,1727423106687,14779.7501,0.00011064,2]
[339267969,1727423111623,297.3,0.00010959,2]
[339268015,1727423133195,247.75,0.00010959,2]
[339268181,1727423143985,206.46,0.00010959,2]
[339268182,1727423150674,150.0,0.000109,2]
[339268183,1727423151267,150.0,0.000102,2]
[339268184,1727423151913,150.0,9.5e-05,2]
[339268185,1727423152524,150.0,8.8e-05,2]
[339268189,1727423153160,176.234508,8.1e-05,2]
[339268252,1727423154533,172.05,0.00010959,2]
[339268363,1727423165045,860.28,0.00010959,2]
[339268364,1727423204637,498.93,0.00010959,2]
[339268604,1727423264959,500.0,9.818e-05,2]
[339268605,1727423265313,500.0,9.818e-05,2]
[339268606,1727423265652,570.0,9.818e-05,2]
[339268607,1727423277987,200.0,9.818e-05,2]
[339268608,1727423278406,200.0,9.818e-05,2]
[339268609,1727423278905,200.0,9.818e-05,2]
[339268610,1727423279384,200.0,9.818e-05,2]
[339268611,1727423279722,253.0,9.818e-05,2]
[339268612,1727423421602,317.83,9.589e-05,2]
[339268617,1727423431875,-300.0,0.00011247,2]
[339268618,1727423431886,-1414.72611778,0.00011305,2]
[339268619,1727423431897,-1315.58592,0.00011305,2]